bitfinex/quotes_SOLUSD_20251120
["timestamp","ask_amount","ask_price","bid_price","bid_amount"]
[1763651653357,0.71,139.66,139.62,12.36115162]
[1763651653524,0.71,139.66,139.63,12.36115162]
[1763651653730,0.71,139.66,139.65,12.36115162]
[1763651653969,2.47,139.69,139.66,0.2]
[1763651654330,0.71,139.68,139.65,12.36115162]
[1763651654535,0.71,139.68,139.66,12.36115162]
[1763651654749,0.71,139.68,139.67,12.36115162]
[1763651654950,0.71,139.68,139.66,12.36115162]
[1763651655146,0.71,139.68,139.64,7.36108371]
[1763651655147,0.71,139.68,139.64,0.2]
[1763651655341,0.71,139.68,139.65,12.36115162]
[1763651655562,0.71,139.68,139.64,0.2]
[1763651655563,0.71,139.68,139.66,12.36115162]
[1763651656060,7.86928527,139.68,139.65,12.36115162]
[1763651656271,0.71,139.68,139.65,12.36115162]
[1763651656447,0.71,139.67,139.65,12.36115162]
[1763651656647,0.71,139.67,139.66,12.36115162]
[1763651657384,0.71,139.69,139.66,12.36115162]
[1763651657562,0.71,139.72,139.68,12.56115162]
[1763651657865,0.71,139.72,139.71,12.36115162]
[1763651657866,2.47,139.72,139.71,12.36115162]
[1763651658041,9.62718678,139.72,139.68,12.36115162]
[1763651658254,0.71,139.71,139.68,12.56115162]
[1763651658557,0.71,139.71,139.65,17.90073519]
[1763651658558,0.71,139.71,139.67,12.36115162]
[1763651658736,0.71,139.71,139.66,0.2]
[1763651658939,0.71,139.71,139.64,0.2]
[1763651659281,18.12096,139.69,139.64,12.36115162]
[1763651659570,18.12096,139.69,139.65,12.36115162]
[1763651659740,0.71,139.68,139.65,12.36115162]
[1763651659936,1.76,139.67,139.65,12.36115162]
[1763651660445,18.12096,139.65,139.58,19.72534147]
[1763651660647,2.43,139.64,139.59,0.2]
[1763651660846,2.43,139.64,139.58,0.2]
[1763651661071,0.67,139.63,139.59,12.56115162]
[1763651661265,0.67,139.63,139.61,12.36115162]
[1763651661669,2.43,139.63,139.6,12.56115162]
[1763651662045,2.43,139.63,139.61,12.36115162]
[1763651662262,0.67,139.62,139.61,12.36115162]
[1763651662680,1.76,139.63,139.61,12.56115162]
[1763651663178,1.76,139.63,139.6,0.2]
[1763651663382,1.76,139.63,139.59,7.36367947]
[1763651663675,0.67,139.62,139.59,12.36115162]
[1763651663856,0.67,139.62,139.59,12.56115162]
[1763651664055,1.76,139.63,139.59,0.2]
[1763651664281,7.16094697,139.65,139.61,12.36115162]
[1763651664472,0.67,139.65,139.61,12.36115162]
[1763651664672,0.67,139.64,139.6,12.36115162]
[1763651664896,0.67,139.64,139.58,14.49168071]
[1763651665077,7.79743216,139.64,139.58,7.32743216]
[1763651665582,7.79743216,139.63,139.58,0.2]
[1763651665967,0.67,139.62,139.58,0.2]
[1763651666169,1.76,139.61,139.58,0.2]
[1763651666472,0.67,139.6,139.56,7.32743216]
[1763651666660,0.67,139.6,139.58,0.2]
[1763651666855,0.67,139.6,139.56,7.12743216]
[1763651667173,7.12743216,139.59,139.54,0.3]
[1763651667479,0.67,139.6,139.57,7.12743216]
[1763651667684,1.76,139.58,139.57,7.12743216]
[1763651667868,0.67,139.6,139.57,7.12743216]
[1763651668077,0.67,139.59,139.55,0.2]
[1763651668267,0.67,139.59,139.54,0.1]
[1763651668470,0.67,139.59,139.54,7.22743216]
[1763651668678,0.67,139.59,139.54,0.1]
[1763651668991,0.67,139.59,139.54,7.42743216]
[1763651669284,0.67,139.59,139.54,7.22743216]
[1763651669786,0.67,139.59,139.54,0.1]
[1763651669988,7.12743216,139.57,139.54,0.1]
[1763651670195,14.29280905,139.56,139.54,0.1]
[1763651670394,1.76,139.55,139.54,0.1]
[1763651670560,2.46,139.55,139.54,0.1]
[1763651672175,19.37625985,139.55,139.46,7.12743216]
[1763651672360,7.12743216,139.53,139.47,7.12743216]
[1763651672562,0.7,139.52,139.46,7.12743216]
[1763651672761,1.76,139.51,139.46,7.32743216]
[1763651672977,8.88743216,139.51,139.43,0.2]
[1763651673292,18.82096,139.52,139.46,7.32743216]
[1763651673293,0.7,139.5,139.46,7.32743216]
[1763651673461,1.76,139.5,139.47,7.12743216]
[1763651673795,1.76,139.49,139.48,7.12743216]
[1763651673971,0.7,139.52,139.48,7.12743216]
[1763651674179,0.7,139.52,139.48,0.2]
[1763651674370,1.76,139.51,139.47,7.32743216]
[1763651674690,1.76,139.51,139.48,0.2]
[1763651674884,1.76,139.51,139.48,7.12743216]
[1763651675076,1.76,139.51,139.49,7.32743216]
[1763651675475,0.7,139.55,139.5,0.2]
[1763651675681,1.76,139.54,139.5,7.32743216]
[1763651676091,2.46,139.54,139.5,7.32743216]
[1763651676400,0.7,139.56,139.51,7.32743216]
[1763651676589,0.7,139.58,139.53,7.12743216]
[1763651676794,7.12743216,139.62,139.56,7.12743216]
[1763651677105,7.12743216,139.58,139.52,7.12743216]
[1763651677267,1.76,139.57,139.52,7.12743216]
[1763651677461,0.7,139.56,139.52,7.12743216]
[1763651677699,0.7,139.56,139.53,0.2]
[1763651678188,0.7,139.59,139.55,7.12743216]
[1763651678389,0.7,139.59,139.54,7.32743216]
[1763651678390,1.76,139.58,139.54,7.32743216]
[1763651678594,1.76,139.58,139.53,0.67]
[1763651678595,1.76,139.58,139.55,0.2]
[1763651678791,1.79999999,139.66,139.55,0.2]
[1763651678792,1.76,139.6,139.56,0.2]
[1763651679093,1.76,139.6,139.56,7.32743216]
[1763651679291,2.46,139.6,139.56,7.32743216]
[1763651679683,1.76,139.6,139.56,0.2]
[1763651679999,1.76,139.6,139.56,7.32743216]
[1763651680294,2.46,139.6,139.56,7.32743216]
[1763651680467,0.7,139.59,139.55,0.2]
[1763651680668,0.7,139.59,139.54,7.12743216]
[1763651680867,0.7,139.59,139.54,7.32743216]
[1763651681085,0.7,139.59,139.54,7.12743216]
[1763651681277,0.7,139.59,139.54,7.32743216]
[1763651681487,0.7,139.59,139.55,0.2]
[1763651681902,1.76,139.58,139.56,7.12743216]
[1763651682081,0.7,139.59,139.55,7.32743216]
[1763651682275,1.76,139.6,139.55,7.32743216]
[1763651682276,0.7,139.58,139.55,7.32743216]
[1763651682482,0.7,139.58,139.55,7.12743216]
[1763651682686,0.7,139.58,139.55,7.32743216]
[1763651682998,0.7,139.58,139.54,7.12743216]
[1763651683173,0.7,139.58,139.54,7.32743216]
[1763651683573,0.7,139.58,139.53,0.2]
[1763651683801,7.82743216,139.58,139.52,7.12743216]
[1763651683997,7.82743216,139.58,139.52,7.32743216]
[1763651683998,0.7,139.58,139.52,7.32743216]
[1763651684183,19.88096,139.6,139.53,7.32743216]
[1763651684184,0.7,139.57,139.53,7.32743216]
[1763651684395,0.7,139.57,139.52,7.12743216]
[1763651684581,0.7,139.57,139.53,0.2]
[1763651685102,0.7,139.57,139.53,7.32743216]
[1763651685603,0.7,139.59,139.54,7.12743216]
[1763651685778,0.7,139.59,139.55,7.12743216]
[1763651685973,0.7,139.59,139.56,7.12743216]
[1763651685974,2.46,139.59,139.56,7.12743216]
[1763651686385,1.76,139.59,139.57,7.12743216]
[1763651686589,2.46,139.61,139.57,7.12743216]
[1763651686896,2.46,139.6,139.57,7.12743216]
[1763651687896,1.76,139.6,139.57,7.12743216]
[1763651688214,2.46,139.6,139.56,7.32743216]
[1763651688380,2.46,139.6,139.57,7.12743216]
[1763651689009,2.46,139.6,139.57,7.32743216]
[1763651689211,0.7,139.62,139.59,0.2]
[1763651689502,1.76,139.62,139.59,0.2]
[1763651689674,2.46,139.62,139.58,7.32743216]
[1763651689880,1.76,139.62,139.61,7.12743216]
[1763651690077,7.12743216,139.76,139.62,0.2]
[1763651690270,7.12743216,139.76,139.61,7.79743216]
[1763651690271,0.66,139.68,139.63,7.32743216]
[1763651690474,1.76,139.67,139.61,0.2]
[1763651690701,1.76,139.67,139.63,7.12743216]
[1763651690879,2.42,139.67,139.63,7.32743216]
[1763651691077,2.42,139.67,139.62,0.2]
[1763651691078,0.66,139.66,139.62,0.2]
[1763651691281,7.78743216,139.66,139.6,7.32743216]
[1763651691485,0.66,139.66,139.61,7.12743216]
[1763651691697,0.66,139.65,139.62,0.2]
[1763651691997,1.76,139.64,139.62,0.2]
[1763651692203,0.66,139.68,139.63,7.12743216]
[1763651692523,1.76,139.68,139.63,7.32743216]
[1763651692819,1.76,139.68,139.65,7.12743216]
[1763651693119,1.76,139.68,139.66,7.12743216]
[1763651693277,1.76,139.68,139.66,7.32743216]
[1763651693475,1.76,139.68,139.65,7.32743216]
[1763651693704,2.42,139.68,139.64,7.32743216]
[1763651693905,2.42,139.68,139.63,7.32743216]
[1763651694122,0.66,139.67,139.62,0.2]
[1763651694413,7.78743216,139.67,139.63,0.2]
[1763651694778,0.66,139.67,139.63,7.32743216]
[1763651694995,2.42,139.66,139.63,7.32743216]
[1763651695205,18.12096,139.69,139.65,7.12743216]
[1763651695206,1.76,139.69,139.65,7.12743216]
[1763651695404,0.66,139.68,139.65,0.2]
[1763651695586,0.66,139.68,139.64,7.32743216]
[1763651695790,0.66,139.68,139.63,7.32743216]
[1763651695992,0.66,139.68,139.63,7.12743216]
[1763651695993,7.78743216,139.68,139.63,7.12743216]
[1763651696200,7.78743216,139.68,139.63,7.32743216]
[1763651696395,0.66,139.67,139.63,7.32743216]
[1763651696790,7.78743216,139.67,139.61,0.2]
[1763651696985,7.78743216,139.67,139.57,24.06004408]
[1763651696986,7.78743216,139.67,139.63,0.2]
[1763651697309,0.66,139.66,139.63,0.2]
[1763651698291,7.78743216,139.66,139.62,0.2]
[1763651698727,0.66,139.65,139.62,0.2]
[1763651699417,1.76,139.69,139.67,0.2]
[1763651699624,1.76,139.69,139.67,7.32743216]
[1763651700214,1.76,139.69,139.67,0.2]
[1763651700535,1.76,139.69,139.65,0.7]
[1763651700536,0.66,139.68,139.64,7.32743216]
[1763651700762,7.12743216,139.67,139.61,7.12743216]
[1763651701034,7.12743216,139.64,139.6,0.2]
[1763651701221,1.76,139.63,139.6,0.2]
[1763651701535,0.66,139.67,139.63,0.2]
[1763651701738,1.76,139.66,139.63,0.2]
[1763651701923,8.88743216,139.66,139.6,0.2]
[1763651702123,0.66,139.65,139.6,0.2]
[1763651702308,7.12743216,139.61,139.58,0.2]
[1763651702530,1.76,139.6,139.56,0.2]
[1763651702853,2.42,139.6,139.57,0.2]
[1763651703053,1.76,139.59,139.57,0.2]
[1763651703768,2.42,139.59,139.57,0.2]
[1763651704062,0.66,139.58,139.53,0.7]
[1763651704363,8.92397269,139.59,139.57,0.2]
[1763651704364,1.76,139.59,139.57,0.2]
[1763651704730,1.76,139.62,139.59,0.2]
[1763651704958,2.42,139.62,139.59,0.2]
[1763651705165,0.66,139.66,139.6,0.7]
[1763651705468,1.76,139.67,139.64,7.32743216]
[1763651705640,1.99999999,139.74,139.67,0.2]
[1763651705641,1.76,139.71,139.67,0.2]
[1763651705837,7.12743216,139.7,139.65,0.2]
[1763651706135,7.78743216,139.7,139.65,0.2]
[1763651706336,0.66,139.69,139.66,0.2]
[1763651706536,0.66,139.69,139.64,0.2]
[1763651706537,7.78743216,139.69,139.64,0.2]
[1763651706737,0.66,139.69,139.64,7.32743216]
[1763651706965,0.66,139.68,139.64,0.2]
[1763651707176,1.76,139.67,139.66,0.2]
[1763651707538,9.57993347,139.67,139.64,0.2]
[1763651707734,8.91993347,139.67,139.62,0.2]
[1763651707940,9.57993347,139.67,139.63,0.2]
[1763651708168,0.66,139.66,139.61,7.32743216]
[1763651708540,16.04736563,139.67,139.63,0.2]
[1763651708759,7.12743216,139.65,139.61,0.2]
[1763651708946,0.66,139.66,139.59,0.2]
[1763651708947,7.78743216,139.64,139.59,0.2]
[1763651709268,18.78096,139.66,139.61,0.2]
[1763651709472,1.76,139.63,139.61,0.2]
[1763651709677,1.76,139.63,139.6,0.2]
[1763651709678,8.92181512,139.63,139.6,0.2]
[1763651709856,9.58181512,139.63,139.6,0.2]
[1763651710057,8.92181512,139.63,139.59,0.2]
[1763651710573,8.92181534,139.63,139.59,0.2]
[1763651710879,8.92181534,139.63,139.58,14.49173309]
[1763651710880,0.66,139.62,139.58,14.49173309]
[1763651711181,9.58181534,139.63,139.6,0.2]
[1763651711353,9.58181534,139.63,139.59,0.2]
[1763651711545,1.76,139.63,139.6,0.2]
[1763651711745,0.66,139.7,139.64,0.2]
[1763651711952,0.66,139.7,139.59,0.7]
[1763651711953,7.12743216,139.68,139.63,0.2]
[1763651712177,7.12743216,139.66,139.63,0.2]
[1763651712548,7.78743216,139.65,139.59,8.02743216]
[1763651712774,7.78743216,139.65,139.6,7.32743216]
[1763651712775,0.66,139.65,139.6,7.32743216]
[1763651712953,1.76,139.64,139.61,0.2]
[1763651713652,8.92128378,139.64,139.61,0.2]
[1763651714367,8.92128378,139.64,139.59,7.12743216]
[1763651714368,0.66,139.63,139.59,7.12743216]
[1763651714568,0.66,139.63,139.59,7.32743216]
[1763651714967,7.16128378,139.64,139.6,0.7]
[1763651715174,1.76,139.63,139.61,0.2]
[1763651715566,1.76,139.62,139.6,7.8632063]
[1763651715765,18.78096,139.67,139.61,0.9]
[1763651715955,2.42,139.66,139.62,0.2]
[1763651716160,9.78882769,139.73,139.64,7.32743216]
[1763651716161,0.66,139.69,139.64,7.32743216]
[1763651716357,1.76,139.68,139.63,8.02743216]
[1763651716688,8.88743216,139.68,139.61,7.32743216]
[1763651716980,7.12743216,139.66,139.61,0.2]
[1763651717278,7.12743216,139.66,139.6,0.2]
[1763651717492,0.66,139.65,139.6,0.2]
[1763651717696,16.048704,139.64,139.58,7.32743216]
[1763651717987,7.12743216,139.63,139.58,0.2]
[1763651718195,25.06122984,139.66,139.6,0.2]
[1763651718406,8.88743216,139.65,139.6,0.2]
[1763651718566,7.12743216,139.64,139.6,0.2]
[1763651718763,7.78743216,139.64,139.6,0.2]
[1763651719088,7.15993537,139.67,139.61,7.12743216]
[1763651719276,7.15993537,139.67,139.63,0.2]
[1763651719277,1.76,139.66,139.63,0.2]
[1763651719679,0.66,139.71,139.65,14.4881912]
[1763651719868,1.76,139.7,139.67,7.32743216]
[1763651720272,1.76,139.7,139.67,0.2]
[1763651720559,1.76,139.7,139.65,7.16075904]
[1763651720560,0.71,139.69,139.65,7.32743216]
[1763651720960,7.83743216,139.69,139.63,7.32743216]
[1763651721267,7.83743216,139.69,139.64,0.2]
[1763651721788,14.28716581,139.67,139.62,0.2]
[1763651721998,8.88743216,139.66,139.62,0.2]
[1763651722285,7.12743216,139.65,139.61,0.2]
[1763651722488,7.12743216,139.64,139.59,7.12743216]
[1763651722687,7.12743216,139.63,139.6,0.2]
[1763651722890,9.59743216,139.63,139.57,7.80743216]
[1763651723188,9.59743216,139.63,139.59,0.2]
[1763651723395,9.59743216,139.63,139.57,8.00743216]
[1763651723695,8.92229766,139.62,139.57,8.04485251]
[1763651723868,7.16229766,139.62,139.58,7.32743216]
[1763651724070,1.76,139.61,139.58,8.00743216]
[1763651724273,1.76,139.61,139.58,7.32743216]
[1763651725014,7.16229766,139.62,139.58,7.80743216]
[1763651725171,1.76,139.61,139.58,7.80743216]
[1763651725377,1.76,139.61,139.57,7.12743216]
[1763651725607,0.71,139.6,139.55,8.00743216]
[1763651725806,0.71,139.6,139.55,15.17324212]
[1763651725972,0.71,139.6,139.56,0.2]
[1763651726177,1.76,139.61,139.57,0.2]
[1763651726499,0.71,139.6,139.57,0.2]
[1763651726911,7.87353404,139.6,139.55,7.36584603]
[1763651727083,20.28903709,139.6,139.56,0.2]
[1763651727408,0.71,139.59,139.56,0.2]
[1763651727595,1.76,139.58,139.56,0.2]
[1763651727900,1.76,139.57,139.56,0.2]
[1763651728305,1.76,139.58,139.57,0.2]
[1763651728804,1.76,139.58,139.55,0.2]
[1763651729011,1.76,139.58,139.56,0.2]
[1763651729695,1.76,139.58,139.55,13.09550305]
[1763651729696,9.5843737,139.58,139.55,0.2]
[1763651729997,1.76,139.58,139.56,0.2]
[1763651730983,1.76,139.58,139.56,0.88]
[1763651731181,1.76,139.58,139.56,0.2]
[1763651731380,8.92449046,139.58,139.54,8.046286]
[1763651731581,8.92449046,139.58,139.54,0.88]
[1763651731782,8.92449046,139.58,139.54,13.29550305]
[1763651731990,8.92449046,139.58,139.55,0.2]
[1763651732194,0.66,139.57,139.54,0.2]
[1763651732389,13.07550305,139.57,139.52,0.2]
[1763651732598,0.66,139.57,139.54,0.2]
[1763651732913,25.07736761,139.57,139.53,0.2]
[1763651733091,12.41550305,139.55,139.49,0.88]
[1763651733279,1.76,139.54,139.5,12.41550305]
[1763651733479,25.07736761,139.57,139.52,0.2]
[1763651733680,25.07736761,139.57,139.51,12.41550305]
[1763651733681,14.17550305,139.56,139.51,13.29550305]
[1763651733902,14.17550305,139.56,139.52,0.2]
[1763651734121,12.41550305,139.54,139.48,0.2]
[1763651734412,12.41550305,139.54,139.46,15.72791177]
[1763651734413,14.83550305,139.53,139.47,0.2]
[1763651734627,2.42,139.53,139.49,0.2]
[1763651734913,21.34293424,139.52,139.47,0.68]
[1763651735096,12.41550305,139.51,139.45,12.61550305]
[1763651735298,13.07550305,139.51,139.47,0.2]
[1763651735607,1.76,139.5,139.48,0.2]
[1763651735989,1.76,139.5,139.46,12.41550305]
[1763651736217,12.41550305,139.54,139.48,12.61550305]
[1763651736414,18.12096,139.57,139.5,0.2]
[1763651736415,1.76,139.53,139.5,0.2]
[1763651736717,1.76,139.53,139.46,9.78882769]
[1763651736718,14.17550305,139.52,139.47,0.2]
[1763651736911,19.583448,139.51,139.45,13.29550305]
[1763651737087,7.82794495,139.51,139.47,12.41550305]
[1763651737411,0.66,139.5,139.47,0.2]
[1763651737610,1.76,139.49,139.45,12.61550305]
[1763651737808,12.41550305,139.48,139.44,0.2]
[1763651737992,13.07550305,139.48,139.43,0.2]
[1763651738186,2.42,139.47,139.43,12.61550305]
[1763651738387,2.42,139.47,139.44,0.2]
[1763651738584,1.76,139.46,139.45,0.2]
[1763651739313,7.8296142,139.48,139.45,0.2]
[1763651739314,0.66,139.48,139.45,0.2]
[1763651739515,31.19646305,139.5,139.46,0.2]
[1763651739817,2.42,139.49,139.46,0.2]
[1763651739984,0.66,139.52,139.47,12.41550305]
[1763651740190,14.83550305,139.51,139.46,12.41550305]
[1763651740404,14.17550305,139.5,139.45,0.2]
[1763651740616,12.41550305,139.46,139.4,0.1]
[1763651740919,18.12096,139.47,139.42,0.2]
[1763651740920,9.59117351,139.45,139.42,0.2]
[1763651741090,9.59117351,139.45,139.4,0.3]
[1763651741285,0.66,139.44,139.42,0.2]
[1763651741604,0.66,139.44,139.4,12.51550305]
[1763651741605,0.66,139.44,139.4,12.71550305]
[1763651741808,0.66,139.44,139.4,0.3]
[1763651742006,1.76,139.43,139.4,0.1]
[1763651742210,1.76,139.43,139.4,0.3]
[1763651742422,13.07550305,139.42,139.4,0.1]
[1763651742626,1.76,139.41,139.4,0.1]
[1763651742806,18.12096,139.44,139.4,12.71550305]
[1763651743121,1.76,139.43,139.4,0.3]
[1763651743330,9.59209651,139.43,139.4,0.1]
[1763651743825,1.76,139.42,139.4,0.3]
[1763651744018,2.42,139.42,139.4,0.3]
[1763651744398,0.66,139.41,139.4,0.1]
[1763651745001,1.76,139.41,139.4,0.98]
[1763651745234,2.42,139.41,139.4,0.1]
[1763651745535,13.07550305,139.44,139.41,0.2]
[1763651745735,1.76,139.43,139.41,0.2]
[1763651745934,12.41550305,139.46,139.41,13.29550305]
[1763651746232,2.42,139.45,139.42,0.2]
[1763651746432,14.83550305,139.45,139.41,0.2]
[1763651746631,13.07550305,139.44,139.41,0.2]
[1763651746925,2.42,139.45,139.41,0.2]
[1763651747134,0.66,139.44,139.41,0.2]
[1763651747439,1.76,139.43,139.4,0.1]
[1763651747639,0.66,139.42,139.4,0.1]
[1763651747819,2.42,139.42,139.4,0.1]
[1763651748022,0.66,139.42,139.4,0.1]
[1763651748218,2.42,139.41,139.4,0.1]
[1763651748423,18.12096,139.43,139.4,0.1]
[1763651748649,1.76,139.42,139.4,0.3]
[1763651748942,7.17308657,139.41,139.4,0.1]
[1763651749128,20.24858962,139.41,139.4,0.1]
[1763651750430,22.00858962,139.41,139.4,1e-08]
[1763651750823,7.83308657,139.41,139.4,1e-08]
[1763651751147,40.12954962,139.41,139.4,1e-08]
[1763651751443,38.36954962,139.41,139.4,1e-08]
[1763651751636,0.68,139.44,139.4,0.20000001]
[1763651751835,0.68,139.44,139.41,0.2]
[1763651752147,1.76,139.43,139.42,0.2]
[1763651752352,1.76,139.43,139.41,0.2]
[1763651752723,0.68,139.42,139.41,0.2]
[1763651752947,0.68,139.42,139.4,1e-08]
[1763651753117,7.85267021,139.42,139.4,1e-08]
[1763651753321,20.26817326,139.42,139.4,0.20000001]
[1763651753535,20.26817326,139.42,139.4,1e-08]
[1763651753536,0.68,139.41,139.4,1e-08]
[1763651753739,0.68,139.41,139.4,0.20000001]
[1763651753938,1.76,139.41,139.4,0.20000001]
[1763651754132,1.76,139.41,139.4,12.61550306]
[1763651754339,0.68,139.47,139.43,0.2]
[1763651754643,25.09140439,139.49,139.4,13.06550306]
[1763651754644,12.41550305,139.44,139.4,1e-08]
[1763651754857,14.17550305,139.43,139.4,0.20000001]
[1763651755060,8.93269195,139.42,139.4,0.20000001]
[1763651755250,12.41550305,139.41,139.4,1e-08]
[1763651755441,0.68,139.41,139.4,1e-08]
[1763651755955,14.85550305,139.41,139.4,1e-08]
[1763651756159,2.44,139.41,139.4,1e-08]
[1763651756365,7.17269195,139.42,139.4,1e-08]
[1763651756662,32.97646305,139.41,139.4,1e-08]
[1763651757026,40.14954962,139.41,139.4,1e-08]
[1763651757257,27.73404657,139.41,139.4,1e-08]
[1763651757462,40.14954962,139.41,139.4,1e-08]
[1763651757663,0.68,139.41,139.4,1e-08]
[1763651757837,1.76,139.41,139.4,1e-08]
[1763651758034,14.85550305,139.41,139.4,1e-08]
[1763651758436,1.76,139.41,139.4,1e-08]
[1763651758635,1.76,139.41,139.4,0.20000001]
[1763651758838,1.76,139.41,139.4,1e-08]
[1763651759033,21.34858962,139.41,139.4,1e-08]
[1763651759269,22.02858962,139.41,139.4,1e-08]
[1763651760338,20.26858962,139.41,139.4,1e-08]
[1763651760766,22.02858962,139.41,139.4,1e-08]
[1763651761537,44.23292036,139.41,139.4,1e-08]
[1763651761748,22.02858962,139.41,139.4,1e-08]
[1763651762155,40.14954962,139.41,139.4,1e-08]
[1763651762455,38.38954962,139.41,139.4,1e-08]
[1763651762662,22.02858962,139.41,139.4,1e-08]
[1763651762835,40.14954962,139.41,139.4,1e-08]
[1763651763536,31.81741731,139.41,139.4,1e-08]
[1763651764546,25.97404657,139.41,139.4,1e-08]
[1763651764853,7.85308657,139.41,139.4,1e-08]
[1763651765059,0.68,139.44,139.4,1e-08]
[1763651765271,14.17550305,139.43,139.4,1e-08]
[1763651765464,12.41550305,139.41,139.4,1e-08]
[1763651765671,0.68,139.42,139.4,1e-08]
[1763651765983,0.68,139.46,139.4,0.85000001]
[1763651766304,7.16897268,139.49,139.41,0.65]
[1763651766579,12.41550305,139.47,139.44,0.2]
[1763651766752,12.41550305,139.49,139.46,0.2]
[1763651766955,17.91600974,139.54,139.49,0.2]
[1763651767151,23.32104558,139.55,139.5,12.61550305]
[1763651767345,2.44,139.54,139.49,0.2]
[1763651767579,30.53646305,139.5,139.45,0.2]
[1763651767779,12.41550305,139.48,139.47,0.2]
[1763651768091,12.41550305,139.51,139.48,0.2]
[1763651768264,1.76,139.5,139.48,0.2]
[1763651768460,1.76,139.5,139.47,0.65]
[1763651768461,1.76,139.5,139.47,0.2]
[1763651768855,12.41550305,139.49,139.47,0.2]
[1763651769052,12.41550305,139.49,139.45,0.65]
[1763651769053,7.16948666,139.48,139.45,0.2]
[1763651769252,7.16948666,139.48,139.41,9.78882769]
[1763651769253,1.76,139.47,139.42,0.2]
[1763651769463,25.29011096,139.49,139.43,13.06550305]
[1763651769683,12.41550305,139.44,139.41,0.2]
[1763651769867,1.76,139.43,139.4,0.20000001]
[1763651770079,14.17550305,139.43,139.41,0.2]
[1763651770498,12.41550305,139.42,139.4,0.20000001]
[1763651770703,1.76,139.43,139.4,1e-08]
[1763651770999,12.41550305,139.41,139.4,1e-08]
[1763651771209,19.58858962,139.41,139.4,1e-08]
[1763651771380,20.26858962,139.41,139.4,1e-08]
[1763651771717,22.02858962,139.41,139.4,1e-08]
[1763651772070,19.58858962,139.41,139.4,1e-08]
[1763651772276,21.34858962,139.41,139.4,1e-08]
[1763651772578,22.02858962,139.41,139.4,1e-08]
[1763651772895,21.34858962,139.41,139.4,1e-08]
[1763651773288,22.02858962,139.41,139.4,1e-08]
[1763651774005,20.26858962,139.41,139.4,1e-08]
[1763651774301,18.12096,139.42,139.4,0.85000001]
[1763651774302,7.17265043,139.42,139.4,0.85000001]
[1763651774501,12.41550305,139.44,139.41,0.2]
[1763651774708,35.84486343,139.49,139.44,0.2]
[1763651774709,7.16948666,139.48,139.44,0.2]
[1763651775005,14.17550305,139.47,139.44,0.2]
[1763651775375,0.68,139.5,139.45,0.2]
[1763651775376,1.76,139.46,139.45,0.2]
[1763651775574,1.76,139.46,139.45,0.85]
[1763651775772,0.68,139.53,139.45,0.85]
[1763651775773,12.41550305,139.5,139.47,0.2]
[1763651776086,12.41550305,139.48,139.44,0.2]
[1763651776272,26.85166612,139.49,139.45,0.2]
[1763651776475,12.41550305,139.46,139.42,0.2]
[1763651776693,30.53646305,139.43,139.4,1e-08]
[1763651777007,12.41550305,139.41,139.4,1e-08]
[1763651777179,19.58858962,139.41,139.4,1e-08]
[1763651777379,20.26858962,139.41,139.4,1e-08]
[1763651777789,25.29335427,139.43,139.4,1e-08]